[Event "*** Titled Tuesday Blitz"]
[Site "Chess.com"]
[Date "2019.02.05"]
[Round "5"]
[White "Parhamov"]
[Black "leoo2001"]
[Result "1/2-1/2"]
[WhiteElo "2969"]
[BlackElo "2777"]
[TimeControl "180+2"]
[EndTime "14:03:36 PST"]
[Termination "Game drawn by agreement"]

1. Nf3 {[%clk 0:03:01.1]} 1... d5 {[%clk 0:02:59.6]} 2. g3 {[%clk 0:03:01.5]}
2... Nf6 {[%clk 0:02:58.6]} 3. Bg2 {[%clk 0:03:02.7]} 3... c5 {[%clk 0:02:58.7]}
4. O-O {[%clk 0:03:03.9]} 4... e6 {[%clk 0:02:58.7]} 5. c4 {[%clk 0:03:03]} 5...
d4 {[%clk 0:02:57.5]} 6. e3 {[%clk 0:03:03.8]} 6... Nc6 {[%clk 0:02:57.3]} 7.
exd4 {[%clk 0:03:05]} 7... cxd4 {[%clk 0:02:56.7]} 8. d3 {[%clk 0:03:06.2]} 8...
Be7 {[%clk 0:02:54.2]} 9. Re1 {[%clk 0:03:05.2]} 9... O-O {[%clk 0:02:53.6]} 10.
b3 {[%clk 0:02:46.5]} 10... Bb4 {[%clk 0:02:46.5]} 11. Bd2 {[%clk 0:02:45.9]}
11... Bd6 {[%clk 0:02:45]} 12. a3 {[%clk 0:02:45.3]} 12... a5 {[%clk 0:02:44.6]}
13. Bg5 {[%clk 0:02:45.6]} 13... h6 {[%clk 0:02:44]} 14. Bxf6 {[%clk 0:02:46.2]}
14... Qxf6 {[%clk 0:02:44.8]} 15. Nbd2 {[%clk 0:02:46.4]} 15... Qe7 {[%clk
0:02:44.8]} 16. Qc1 {[%clk 0:02:46.4]} 16... f5 {[%clk 0:02:38.3]} 17. Qb2
{[%clk 0:02:10.4]} 17... Qf6 {[%clk 0:02:37.5]} 18. Rac1 {[%clk 0:02:09.7]}
18... Bc5 {[%clk 0:02:36.8]} 19. Re2 {[%clk 0:02:00.4]} 19... Bd7 {[%clk
0:02:35.5]} 20. Rce1 {[%clk 0:01:57.6]} 20... Bd6 {[%clk 0:02:34.8]} 21. Rc1
{[%clk 0:01:49]} 21... Bc5 {[%clk 0:02:32.5]} 22. Ne1 {[%clk 0:01:49.7]} 22...
e5 {[%clk 0:02:32.1]} 23. Rb1 {[%clk 0:01:27]} 23... b6 {[%clk 0:02:25.7]} 24.
b4 {[%clk 0:01:06.6]} 24... axb4 {[%clk 0:02:25.5]} 25. axb4 {[%clk 0:01:08]}
25... Nxb4 {[%clk 0:02:26]} 26. Bxa8 {[%clk 0:01:07.2]} 26... Rxa8 {[%clk
0:02:26.6]} 27. Nb3 {[%clk 0:01:08.1]} 27... Ra2 {[%clk 0:02:24.7]} 28. Qxa2
{[%clk 0:01:02]} 28... Nxa2 {[%clk 0:02:25.2]} 29. Rxa2 {[%clk 0:01:03.5]} 29...
Bf8 {[%clk 0:02:07]} 30. Ra7 {[%clk 0:01:01]} 30... Qc6 {[%clk 0:01:57.6]}
1/2-1/2

[Event "*** Titled Tuesday Blitz"]
[Site "Chess.com"]
[Date "2019.02.05"]
[Round "5"]
[White "GadimbayliA"]
[Black "Grischuk"]
[Result "0-1"]
[WhiteElo "2805"]
[BlackElo "3046"]
[TimeControl "180+2"]
[EndTime "14:03:38 PST"]
[Termination "Grischuk won by resignation"]

1. e4 {[%clk 0:03:01.9]} 1... e5 {[%clk 0:03:00.9]} 2. Nf3 {[%clk 0:03:02.3]}
2... Nc6 {[%clk 0:03:02.5]} 3. Bb5 {[%clk 0:03:03.1]} 3... a6 {[%clk 0:03:03.9]}
4. Ba4 {[%clk 0:03:04.5]} 4... Nf6 {[%clk 0:03:04.9]} 5. O-O {[%clk 0:03:05.6]}
5... b5 {[%clk 0:03:05.9]} 6. Bb3 {[%clk 0:03:06.6]} 6... Bb7 {[%clk 0:03:07.6]}
7. c3 {[%clk 0:03:04.2]} 7... Nxe4 {[%clk 0:03:05.7]} 8. Re1 {[%clk 0:03:04.5]}
8... d5 {[%clk 0:02:40.6]} 9. d3 {[%clk 0:02:58.5]} 9... Nf6 {[%clk 0:02:35.7]}
10. Nxe5 {[%clk 0:02:55.7]} 10... Nxe5 {[%clk 0:02:37.6]} 11. Rxe5+ {[%clk
0:02:57.4]} 11... Be7 {[%clk 0:02:39.1]} 12. d4 {[%clk 0:02:57.4]} 12... O-O
{[%clk 0:02:39.6]} 13. Bg5 {[%clk 0:02:49.1]} 13... h6 {[%clk 0:02:35.9]} 14.
Bxf6 {[%clk 0:02:50.2]} 14... Bxf6 {[%clk 0:02:36.5]} 15. Re2 {[%clk 0:02:50.4]}
15... Qd6 {[%clk 0:02:30.3]} 16. Nd2 {[%clk 0:02:50.9]} 16... c5 {[%clk
0:02:22.7]} 17. dxc5 {[%clk 0:02:12.1]} 17... Qxc5 {[%clk 0:02:24.6]} 18. Nf3
{[%clk 0:02:13.7]} 18... a5 {[%clk 0:02:24.5]} 19. Rd2 {[%clk 0:02:13.2]} 19...
Rfd8 {[%clk 0:02:23.6]} 20. a3 {[%clk 0:02:12.4]} 20... b4 {[%clk 0:01:42.3]}
21. axb4 {[%clk 0:02:14.3]} 21... axb4 {[%clk 0:01:43.3]} 22. Rxa8 {[%clk
0:02:10.6]} 22... Rxa8 {[%clk 0:01:35.7]} 23. Bxd5 {[%clk 0:01:29.9]} 23... bxc3
{[%clk 0:01:32.3]} 24. bxc3 {[%clk 0:00:58.4]} 24... Bxd5 {[%clk 0:01:28.5]} 25.
Rxd5 {[%clk 0:01:00.1]} 25... Qxd5 {[%clk 0:01:29.7]} 0-1

[Event "*** Titled Tuesday Blitz"]
[Site "Chess.com"]
[Date "2019.02.05"]
[Round "5"]
[White "MartinMatthiesen"]
[Black "Last7Samurai"]
[Result "1/2-1/2"]
[WhiteElo "2513"]
[BlackElo "2698"]
[TimeControl "180+2"]
[EndTime "14:03:44 PST"]
[Termination "Game drawn by repetition"]

1. d4 {[%clk 0:02:55.6]} 1... d5 {[%clk 0:02:59.8]} 2. c4 {[%clk 0:02:56.3]}
2... c6 {[%clk 0:03:00.9]} 3. Nf3 {[%clk 0:02:56.4]} 3... Nf6 {[%clk 0:03:01.6]}
4. Nc3 {[%clk 0:02:57]} 4... e6 {[%clk 0:03:02.6]} 5. Bg5 {[%clk 0:02:49.6]}
5... dxc4 {[%clk 0:03:02.8]} 6. e4 {[%clk 0:02:49.6]} 6... b5 {[%clk 0:03:03]}
7. e5 {[%clk 0:02:50.4]} 7... h6 {[%clk 0:03:03.9]} 8. Bh4 {[%clk 0:02:51.6]}
8... g5 {[%clk 0:03:05.3]} 9. Nxg5 {[%clk 0:02:52.5]} 9... hxg5 {[%clk
0:03:07.2]} 10. Bxg5 {[%clk 0:02:53.7]} 10... Be7 {[%clk 0:03:08.7]} 11. exf6
{[%clk 0:02:54.2]} 11... Bxf6 {[%clk 0:03:10.6]} 12. Bxf6 {[%clk 0:02:54.4]}
12... Qxf6 {[%clk 0:03:12.5]} 13. g3 {[%clk 0:02:55.5]} 13... Bb7 {[%clk
0:03:13.2]} 14. Bg2 {[%clk 0:02:56.4]} 14... Na6 {[%clk 0:03:14.6]} 15. O-O
{[%clk 0:02:48.8]} 15... O-O-O {[%clk 0:03:13.6]} 16. a4 {[%clk 0:02:43.3]}
16... Rxd4 {[%clk 0:03:11.1]} 17. Qe2 {[%clk 0:02:40.7]} 17... b4 {[%clk
0:02:41.1]} 18. Ne4 {[%clk 0:02:39.3]} 18... Qe7 {[%clk 0:02:05.5]} 19. Rfc1
{[%clk 0:02:34.2]} 19... c5 {[%clk 0:01:29.9]} 20. Rxc4 {[%clk 0:02:28.5]} 20...
Rxc4 {[%clk 0:01:31.8]} 21. Qxc4 {[%clk 0:02:28.7]} 21... Kb8 {[%clk 0:01:33.3]}
22. Rd1 {[%clk 0:02:20.4]} 22... Rd8 {[%clk 0:01:32]} 23. Rxd8+ {[%clk
0:02:05.7]} 23... Qxd8 {[%clk 0:01:33.9]} 24. Nxc5 {[%clk 0:01:13.4]} 24... Nxc5
{[%clk 0:01:32.6]} 25. Qxc5 {[%clk 0:01:14.4]} 25... Qd1+ {[%clk 0:01:33.8]} 26.
Bf1 {[%clk 0:01:15.4]} 26... Qf3 {[%clk 0:01:35.3]} 27. Qd6+ {[%clk 0:01:15.3]}
27... Kc8 {[%clk 0:01:34.5]} 28. Qc5+ {[%clk 0:01:15.3]} 28... Kb8 {[%clk
0:01:31.9]} 29. Qd6+ {[%clk 0:01:07.3]} 29... Kc8 {[%clk 0:01:32.8]} 30. Qc5+
{[%clk 0:01:06.5]} 30... Kb8 {[%clk 0:01:31.7]} 1/2-1/2

[Event "*** Titled Tuesday Blitz"]
[Site "Chess.com"]
[Date "2019.02.05"]
[Round "5"]
[White "fmshawnrl123"]
[Black "indfraeng"]
[Result "1-0"]
[WhiteElo "2614"]
[BlackElo "1968"]
[TimeControl "180+2"]
[EndTime "14:03:45 PST"]
[Termination "fmshawnrl123 won by checkmate"]

1. e4 {[%clk 0:03:01.9]} 1... e5 {[%clk 0:02:57.1]} 2. Nf3 {[%clk 0:03:01.9]}
2... Nc6 {[%clk 0:02:57.7]} 3. Bb5 {[%clk 0:03:02.5]} 3... a6 {[%clk 0:02:56.8]}
4. Ba4 {[%clk 0:03:02.9]} 4... Nf6 {[%clk 0:02:53.8]} 5. O-O {[%clk 0:03:01.5]}
5... Be7 {[%clk 0:02:54.7]} 6. Re1 {[%clk 0:02:56.7]} 6... b5 {[%clk 0:02:54.9]}
7. Bb3 {[%clk 0:02:57.4]} 7... d6 {[%clk 0:02:56.3]} 8. c3 {[%clk 0:02:55.2]}
8... O-O {[%clk 0:02:57.8]} 9. h3 {[%clk 0:02:55.5]} 9... Nb8 {[%clk 0:02:57.6]}
10. d4 {[%clk 0:02:55.3]} 10... Nbd7 {[%clk 0:02:56.9]} 11. a4 {[%clk
0:02:55.9]} 11... Re8 {[%clk 0:02:52.6]} 12. axb5 {[%clk 0:02:55.7]} 12... Bb7
{[%clk 0:02:48.3]} 13. bxa6 {[%clk 0:02:55.1]} 13... Rxa6 {[%clk 0:02:45.1]} 14.
Rxa6 {[%clk 0:02:55.4]} 14... Bxa6 {[%clk 0:02:46.9]} 15. dxe5 {[%clk
0:02:55.3]} 15... Nxe5 {[%clk 0:02:46.4]} 16. Nxe5 {[%clk 0:02:54.5]} 16... dxe5
{[%clk 0:02:47.6]} 17. Nd2 {[%clk 0:02:51.6]} 17... Bc5 {[%clk 0:02:43.1]} 18.
Qf3 {[%clk 0:02:47.3]} 18... Qd3 {[%clk 0:02:31.3]} 19. Qxd3 {[%clk 0:02:41.5]}
19... Bxd3 {[%clk 0:02:30.9]} 20. Bc4 {[%clk 0:02:43.4]} 20... Bxc4 {[%clk
0:02:22.9]} 21. Nxc4 {[%clk 0:02:45.3]} 21... Rd8 {[%clk 0:02:19.6]} 22. Bg5
{[%clk 0:02:44.9]} 22... Re8 {[%clk 0:02:15.6]} 23. Bxf6 {[%clk 0:02:45.4]}
23... gxf6 {[%clk 0:02:15.9]} 24. Kf1 {[%clk 0:02:43.4]} 24... Rd8 {[%clk
0:02:13.5]} 25. Ke2 {[%clk 0:02:43.6]} 25... Kg7 {[%clk 0:02:09.2]} 26. f3
{[%clk 0:02:43.9]} 26... Rb8 {[%clk 0:02:08.8]} 27. b4 {[%clk 0:02:44.4]} 27...
Be7 {[%clk 0:02:08.5]} 28. Ne3 {[%clk 0:02:45]} 28... c5 {[%clk 0:02:08.6]} 29.
Nd5 {[%clk 0:02:36.5]} 29... Bd6 {[%clk 0:02:08.8]} 30. Rb1 {[%clk 0:02:36.4]}
30... cxb4 {[%clk 0:02:06.4]} 31. cxb4 {[%clk 0:02:38.3]} 31... Ra8 {[%clk
0:02:06.9]} 32. Rb2 {[%clk 0:02:37]} 32... Rb8 {[%clk 0:02:05.7]} 33. b5 {[%clk
0:02:37.7]} 33... Kg6 {[%clk 0:02:03.5]} 34. b6 {[%clk 0:02:38.1]} 34... f5
{[%clk 0:02:04.4]} 35. b7 {[%clk 0:02:38.2]} 35... fxe4 {[%clk 0:02:04.9]} 36.
fxe4 {[%clk 0:02:40.1]} 36... f5 {[%clk 0:02:04.2]} 37. Kd3 {[%clk 0:02:40.9]}
37... fxe4+ {[%clk 0:02:03.8]} 38. Kxe4 {[%clk 0:02:42.8]} 38... Kf7 {[%clk
0:02:05.3]} 39. Rb6 {[%clk 0:02:41.5]} 39... Ke6 {[%clk 0:02:05]} 40. Nc7+
{[%clk 0:02:42.4]} 40... Kd7 {[%clk 0:02:05.7]} 41. Na6 {[%clk 0:02:43.3]} 41...
Rg8 {[%clk 0:02:04.8]} 42. Rxd6+ {[%clk 0:02:42.2]} 42... Kxd6 {[%clk
0:02:04.6]} 43. b8=Q+ {[%clk 0:02:42.9]} 43... Rxb8 {[%clk 0:02:05.1]} 44. Nxb8
{[%clk 0:02:44.8]} 44... Ke6 {[%clk 0:02:05.5]} 45. Nc6 {[%clk 0:02:45.3]} 45...
Kf6 {[%clk 0:02:07]} 46. Nxe5 {[%clk 0:02:47.2]} 46... Kg5 {[%clk 0:02:08.9]}
47. g3 {[%clk 0:02:46.9]} 47... Kh6 {[%clk 0:02:07.1]} 48. Kf5 {[%clk
0:02:47.5]} 48... Kg7 {[%clk 0:02:08]} 49. Ng4 {[%clk 0:02:46.9]} 49... h5
{[%clk 0:02:05.8]} 50. Nf6 {[%clk 0:02:47.6]} 50... h4 {[%clk 0:02:06.8]} 51. g4
{[%clk 0:02:48.1]} 51... Kh8 {[%clk 0:02:06.2]} 52. Kg5 {[%clk 0:02:48.9]} 52...
Kg7 {[%clk 0:02:07.6]} 53. Kxh4 {[%clk 0:02:47]} 53... Kxf6 {[%clk 0:02:08.4]}
54. Kh5 {[%clk 0:02:48.1]} 54... Kg7 {[%clk 0:02:09.3]} 55. Kg5 {[%clk
0:02:49.4]} 55... Kh7 {[%clk 0:02:10.5]} 56. Kf6 {[%clk 0:02:50.3]} 56... Kh6
{[%clk 0:02:11.9]} 57. g5+ {[%clk 0:02:49.8]} 57... Kh7 {[%clk 0:02:12.2]} 58.
g6+ {[%clk 0:02:49.3]} 58... Kg8 {[%clk 0:02:13.1]} 59. g7 {[%clk 0:02:49.8]}
59... Kh7 {[%clk 0:02:14.2]} 60. Kf7 {[%clk 0:02:51.7]} 60... Kh6 {[%clk
0:02:15.7]} 61. g8=Q {[%clk 0:02:52.6]} 61... Kh5 {[%clk 0:02:16.9]} 62. Qg6+
{[%clk 0:02:51.2]} 62... Kh4 {[%clk 0:02:18.2]} 63. Qg4# {[%clk 0:02:53.1]} 1-0

[Event "*** Titled Tuesday Blitz"]
[Site "Chess.com"]
[Date "2019.02.05"]
[Round "5"]
[White "JoakimVonAnd"]
[Black "Caterpiller35"]
[Result "0-1"]
[WhiteElo "2306"]
[BlackElo "2243"]
[TimeControl "180+2"]
[EndTime "14:03:52 PST"]
[Termination "Caterpiller35 won by resignation"]

1. d4 {[%clk 0:03:01.9]} 1... Nf6 {[%clk 0:03:00.3]} 2. c4 {[%clk 0:03:03.2]}
2... e6 {[%clk 0:02:57.2]} 3. Nc3 {[%clk 0:03:04.1]} 3... Bb4 {[%clk 0:02:55.8]}
4. Qc2 {[%clk 0:03:04]} 4... O-O {[%clk 0:02:54.2]} 5. Nf3 {[%clk 0:03:05]} 5...
b6 {[%clk 0:02:54.5]} 6. e4 {[%clk 0:03:05.3]} 6... d5 {[%clk 0:02:54.5]} 7.
cxd5 {[%clk 0:03:03.4]} 7... exd5 {[%clk 0:02:56.4]} 8. e5 {[%clk 0:03:04.1]}
8... Ne4 {[%clk 0:02:57.6]} 9. Bd3 {[%clk 0:03:05.3]} 9... f5 {[%clk 0:02:32.8]}
10. O-O {[%clk 0:03:03.3]} 10... Be6 {[%clk 0:02:27.2]} 11. a3 {[%clk
0:02:59.5]} 11... Bxc3 {[%clk 0:02:26.1]} 12. bxc3 {[%clk 0:03:01.4]} 12... c5
{[%clk 0:02:26]} 13. Be3 {[%clk 0:02:39.4]} 13... Nc6 {[%clk 0:02:25.5]} 14. Ne1
{[%clk 0:02:29.3]} 14... c4 {[%clk 0:02:19.5]} 15. Be2 {[%clk 0:02:29.1]} 15...
f4 {[%clk 0:02:15.8]} 16. Bc1 {[%clk 0:02:28.2]} 16... Bf5 {[%clk 0:02:10.6]}
17. Qb2 {[%clk 0:02:26.1]} 17... Qh4 {[%clk 0:01:42]} 18. Nf3 {[%clk 0:02:17.2]}
18... Qh6 {[%clk 0:01:36.4]} 19. Qb5 {[%clk 0:02:04.8]} 19... Nxc3 {[%clk
0:01:34.6]} 20. Qb2 {[%clk 0:02:01.5]} 20... Nxe2+ {[%clk 0:01:30.8]} 21. Qxe2
{[%clk 0:02:03.4]} 21... Bd3 {[%clk 0:01:30.3]} 22. Qb2 {[%clk 0:01:49]} 22...
Bxf1 {[%clk 0:01:30.2]} 23. Kxf1 {[%clk 0:01:50.9]} 23... g5 {[%clk 0:01:26.8]}
24. h3 {[%clk 0:01:49]} 24... Qg6 {[%clk 0:01:18.1]} 25. Qb5 {[%clk 0:01:49.9]}
25... Rad8 {[%clk 0:01:02.9]} 26. Nxg5 {[%clk 0:01:51.1]} 26... Nxd4 {[%clk
0:01:00.2]} 27. Qb2 {[%clk 0:01:48.8]} 27... Nb3 {[%clk 0:00:35.7]} 0-1

[Event "*** Titled Tuesday Blitz"]
[Site "Chess.com"]
[Date "2019.02.05"]
[Round "5"]
[White "Antipov_Mikhail_Al"]
[Black "Keaton87"]
[Result "1-0"]
[WhiteElo "2725"]
[BlackElo "2543"]
[TimeControl "180+2"]
[EndTime "14:03:54 PST"]
[Termination "Antipov_Mikhail_Al won by checkmate"]

1. e4 {[%clk 0:03:01.9]} 1... c5 {[%clk 0:03:00.8]} 2. Nf3 {[%clk 0:03:02.5]}
2... e6 {[%clk 0:03:01.9]} 3. b3 {[%clk 0:03:03.6]} 3... d5 {[%clk 0:02:57.7]}
4. Bb5+ {[%clk 0:03:02.6]} 4... Bd7 {[%clk 0:02:56.5]} 5. Bxd7+ {[%clk
0:03:03.2]} 5... Nxd7 {[%clk 0:02:54.1]} 6. exd5 {[%clk 0:03:05.1]} 6... exd5
{[%clk 0:02:54.8]} 7. O-O {[%clk 0:03:07]} 7... Ngf6 {[%clk 0:02:54.9]} 8. Re1+
{[%clk 0:03:08.2]} 8... Be7 {[%clk 0:02:55.7]} 9. Qe2 {[%clk 0:03:10.1]} 9...
Rc8 {[%clk 0:02:33.1]} 10. Ba3 {[%clk 0:03:00.6]} 10... Rc6 {[%clk 0:02:31.8]}
11. Nd4 {[%clk 0:03:01.7]} 11... cxd4 {[%clk 0:00:56.7]} 12. Bxe7 {[%clk
0:02:55.8]} 12... Re6 {[%clk 0:00:36]} 13. Qxe6 {[%clk 0:02:51.6]} 13... fxe6
{[%clk 0:00:36.6]} 14. Bxd8 {[%clk 0:02:52.8]} 14... Kxd8 {[%clk 0:00:37.7]} 15.
Rxe6 {[%clk 0:02:54.5]} 15... Kc7 {[%clk 0:00:35.9]} 16. Na3 {[%clk 0:02:54.9]}
16... a6 {[%clk 0:00:35.5]} 17. c3 {[%clk 0:02:55.8]} 17... Nc5 {[%clk
0:00:33.4]} 18. Re7+ {[%clk 0:02:55.8]} 18... Kd6 {[%clk 0:00:34.5]} 19. Rxg7
{[%clk 0:02:57]} 19... d3 {[%clk 0:00:35.5]} 20. Re1 {[%clk 0:02:55]} 20... Nfe4
{[%clk 0:00:35.1]} 21. Nb1 {[%clk 0:02:54.8]} 21... a5 {[%clk 0:00:27.2]} 22. f3
{[%clk 0:02:55.5]} 22... Nf6 {[%clk 0:00:26.6]} 23. Na3 {[%clk 0:02:56.4]} 23...
b6 {[%clk 0:00:16.2]} 24. Nb5+ {[%clk 0:02:57.2]} 24... Kc6 {[%clk 0:00:17.2]}
25. a4 {[%clk 0:02:56.6]} 25... Nfd7 {[%clk 0:00:17.3]} 26. Ree7 {[%clk
0:02:55.8]} 26... Rd8 {[%clk 0:00:14.2]} 27. b4 {[%clk 0:02:55.8]} 27... Nxa4
{[%clk 0:00:12.3]} 28. Nd4+ {[%clk 0:02:56.5]} 28... Kd6 {[%clk 0:00:13]} 29.
Re6+ {[%clk 0:02:54.2]} 29... Kc7 {[%clk 0:00:13.1]} 30. Nb5+ {[%clk 0:02:54.5]}
30... Kb7 {[%clk 0:00:13.5]} 31. Rd6 {[%clk 0:02:55.5]} 31... Ka6 {[%clk
0:00:13.5]} 32. Nc7+ {[%clk 0:02:56.2]} 32... Kb7 {[%clk 0:00:13.9]} 33. Nxd5
{[%clk 0:02:58.1]} 33... Kc8 {[%clk 0:00:09.8]} 34. Rc6+ {[%clk 0:02:59.2]}
34... Kb8 {[%clk 0:00:09.6]} 35. Rd6 {[%clk 0:03:00.7]} 35... Kc8 {[%clk
0:00:10.3]} 36. b5 {[%clk 0:03:02.3]} 36... Nac5 {[%clk 0:00:05.5]} 37. Rc6+
{[%clk 0:03:01.7]} 37... Kb8 {[%clk 0:00:05.7]} 38. Nxb6 {[%clk 0:03:02.9]}
38... a4 {[%clk 0:00:03.6]} 39. Nxd7+ {[%clk 0:03:02.7]} 39... Nxd7 {[%clk
0:00:03.4]} 40. Rd6 {[%clk 0:03:03.2]} 40... Kc8 {[%clk 0:00:03.8]} 41. Ra6
{[%clk 0:03:04]} 41... Nc5 {[%clk 0:00:04.6]} 42. Ra8# {[%clk 0:03:05.1]} 1-0

[Event "*** Titled Tuesday Blitz"]
[Site "Chess.com"]
[Date "2019.02.05"]
[Round "5"]
[White "tioloko"]
[Black "Incognito_Knight"]
[Result "1-0"]
[WhiteElo "2583"]
[BlackElo "2612"]
[TimeControl "180+2"]
[EndTime "14:04:04 PST"]
[Termination "tioloko won by checkmate"]

1. e4 {[%clk 0:03:01.9]} 1... c5 {[%clk 0:02:58.1]} 2. Nf3 {[%clk 0:03:02.8]}
2... e6 {[%clk 0:02:58.6]} 3. d4 {[%clk 0:03:04.7]} 3... cxd4 {[%clk 0:03:00.5]}
4. Nxd4 {[%clk 0:03:06.5]} 4... a6 {[%clk 0:03:02.2]} 5. Nc3 {[%clk 0:03:07.7]}
5... b5 {[%clk 0:03:02.8]} 6. Bd3 {[%clk 0:03:08]} 6... Qb6 {[%clk 0:03:03.9]}
7. Nf3 {[%clk 0:03:09.6]} 7... Qc7 {[%clk 0:03:05.4]} 8. O-O {[%clk 0:03:11.2]}
8... Bb7 {[%clk 0:03:06.8]} 9. Re1 {[%clk 0:03:13.1]} 9... Be7 {[%clk
0:03:06.2]} 10. e5 {[%clk 0:03:14]} 10... f5 {[%clk 0:03:07.2]} 11. Nd4 {[%clk
0:03:14.8]} 11... Nc6 {[%clk 0:03:05.8]} 12. Nxf5 {[%clk 0:02:31.3]} 12... exf5
{[%clk 0:03:04.5]} 13. Nd5 {[%clk 0:02:31.1]} 13... Qa5 {[%clk 0:02:20.1]} 14.
Bxf5 {[%clk 0:02:24.6]} 14... Nd4 {[%clk 0:02:02.1]} 15. b4 {[%clk 0:02:24.3]}
15... Bxb4 {[%clk 0:01:43.5]} 16. Qxd4 {[%clk 0:02:24.3]} 16... Bxe1 {[%clk
0:01:40]} 17. Bxd7+ {[%clk 0:02:03.7]} 17... Kxd7 {[%clk 0:01:38.1]} 18. Nb6+
{[%clk 0:02:04.1]} 18... Ke6 {[%clk 0:01:32.9]} 19. Qd7+ {[%clk 0:01:54]} 19...
Kxe5 {[%clk 0:01:20]} 20. Bb2+ {[%clk 0:01:55.9]} 20... Kf4 {[%clk 0:00:24.3]}
21. g3+ {[%clk 0:01:47.9]} 21... Kg5 {[%clk 0:00:16.8]} 22. f4+ {[%clk
0:01:48.4]} 22... Kh5 {[%clk 0:00:15.8]} 23. Qf5+ {[%clk 0:01:37.5]} 23... Kh6
{[%clk 0:00:16.5]} 24. Qg5# {[%clk 0:01:39.4]} 1-0

[Event "*** Titled Tuesday Blitz"]
[Site "Chess.com"]
[Date "2019.02.05"]
[Round "5"]
[White "mousavian_hamed"]
[Black "jeetjain"]
[Result "1-0"]
[WhiteElo "2534"]
[BlackElo "2347"]
[TimeControl "180+2"]
[EndTime "14:04:04 PST"]
[Termination "mousavian_hamed won by resignation"]

1. e4 {[%clk 0:03:01.9]} 1... e5 {[%clk 0:02:57.7]} 2. Nf3 {[%clk 0:03:01.4]}
2... Nc6 {[%clk 0:02:59.3]} 3. Bc4 {[%clk 0:03:01.7]} 3... Bc5 {[%clk
0:02:59.8]} 4. c3 {[%clk 0:03:01.7]} 4... Nf6 {[%clk 0:03:01]} 5. d3 {[%clk
0:03:02.3]} 5... d6 {[%clk 0:03:02]} 6. Nbd2 {[%clk 0:03:02.8]} 6... a6 {[%clk
0:03:01.8]} 7. Bb3 {[%clk 0:03:03.2]} 7... O-O {[%clk 0:03:01.8]} 8. h3 {[%clk
0:03:03.3]} 8... h6 {[%clk 0:03:02.4]} 9. g4 {[%clk 0:03:02.9]} 9... Be6 {[%clk
0:03:02.8]} 10. Nf1 {[%clk 0:02:58.4]} 10... d5 {[%clk 0:03:02.8]} 11. Qe2
{[%clk 0:02:58.1]} 11... dxe4 {[%clk 0:02:50.8]} 12. dxe4 {[%clk 0:02:56.9]}
12... Nh7 {[%clk 0:02:34.4]} 13. Ng3 {[%clk 0:02:54.7]} 13... Na5 {[%clk
0:02:30.6]} 14. Bxe6 {[%clk 0:02:53.8]} 14... fxe6 {[%clk 0:02:31.3]} 15. b4
{[%clk 0:02:53.1]} 15... Qf6 {[%clk 0:02:30.2]} 16. bxc5 {[%clk 0:02:42.6]}
16... Qxf3 {[%clk 0:02:30.6]} 17. Be3 {[%clk 0:02:41.4]} 17... Qxe2+ {[%clk
0:02:20.2]} 18. Kxe2 {[%clk 0:02:41.4]} 18... Nc4 {[%clk 0:02:21.5]} 19. Rab1
{[%clk 0:02:40]} 19... Rab8 {[%clk 0:02:20.5]} 20. Rb4 {[%clk 0:02:37.1]} 20...
Nxe3 {[%clk 0:02:20.3]} 21. Kxe3 {[%clk 0:02:35.3]} 21... Ng5 {[%clk 0:02:21.6]}
22. h4 {[%clk 0:02:33.1]} 22... Nf7 {[%clk 0:02:08.7]} 23. Rd1 {[%clk
0:02:30.8]} 23... Rfd8 {[%clk 0:02:07.4]} 24. Rdb1 {[%clk 0:02:28.6]} 24... Rd7
{[%clk 0:01:35.1]} 25. c6 {[%clk 0:02:23.5]} 25... Rd6 {[%clk 0:01:30.1]} 26.
cxb7 {[%clk 0:02:23.6]} 26... Nd8 {[%clk 0:01:28.1]} 27. Nf1 {[%clk 0:02:21.5]}
27... Nc6 {[%clk 0:01:21.4]} 28. Rc4 {[%clk 0:02:14.6]} 28... Kf7 {[%clk
0:01:12.1]} 29. Nd2 {[%clk 0:02:14.3]} 29... Ke7 {[%clk 0:01:02.6]} 30. Rc5
{[%clk 0:02:13.5]} 30... Kd7 {[%clk 0:00:46.4]} 31. Nc4 {[%clk 0:02:12.4]} 31...
Na7 {[%clk 0:00:42.5]} 32. Nxd6 {[%clk 0:02:10.9]} 32... cxd6 {[%clk 0:00:42]}
33. Ra5 {[%clk 0:02:09.1]} 33... Nb5 {[%clk 0:00:38.5]} 34. Rxa6 {[%clk
0:02:05.5]} 1-0

[Event "*** Titled Tuesday Blitz"]
[Site "Chess.com"]
[Date "2019.02.05"]
[Round "5"]
[White "Al_Shima"]
[Black "tigra"]
[Result "1-0"]
[WhiteElo "2518"]
[BlackElo "2722"]
[TimeControl "180+2"]
[EndTime "14:04:06 PST"]
[Termination "Al_Shima won by resignation"]

1. b3 {[%clk 0:03:01.9]} 1... e5 {[%clk 0:02:57.8]} 2. Bb2 {[%clk 0:03:03]} 2...
f6 {[%clk 0:02:59.7]} 3. e3 {[%clk 0:03:03.8]} 3... Nh6 {[%clk 0:02:58.9]} 4. d4
{[%clk 0:03:03.2]} 4... e4 {[%clk 0:02:59]} 5. d5 {[%clk 0:02:59.3]} 5... Bb4+
{[%clk 0:02:58.8]} 6. Nd2 {[%clk 0:02:57.4]} 6... d6 {[%clk 0:02:58.3]} 7. c3
{[%clk 0:02:49.9]} 7... Ba5 {[%clk 0:02:58.4]} 8. Nxe4 {[%clk 0:02:50.4]} 8...
Qe7 {[%clk 0:03:00.3]} 9. Nd2 {[%clk 0:02:41.9]} 9... Bg4 {[%clk 0:02:58]} 10.
Be2 {[%clk 0:02:34.9]} 10... f5 {[%clk 0:02:59.9]} 11. h3 {[%clk 0:02:31.8]}
11... Bxe2 {[%clk 0:02:59.8]} 12. Qxe2 {[%clk 0:02:33.1]} 12... O-O {[%clk
0:03:01.6]} 13. Nc4 {[%clk 0:02:20.7]} 13... Bb6 {[%clk 0:03:02.2]} 14. Nxb6
{[%clk 0:02:20.5]} 14... axb6 {[%clk 0:03:04.1]} 15. Nf3 {[%clk 0:02:17.1]}
15... Nd7 {[%clk 0:03:06]} 16. O-O {[%clk 0:02:13.6]} 16... Nf6 {[%clk
0:03:07.9]} 17. c4 {[%clk 0:02:12.6]} 17... Ne4 {[%clk 0:03:09.8]} 18. Nd4
{[%clk 0:02:12]} 18... Rf6 {[%clk 0:03:08.1]} 19. Ne6 {[%clk 0:02:05.8]} 19...
Rg6 {[%clk 0:03:08.9]} 20. Nf4 {[%clk 0:02:06.1]} 20... Rg5 {[%clk 0:03:09.6]}
21. h4 {[%clk 0:01:28]} 21... Rg4 {[%clk 0:03:06.7]} 22. f3 {[%clk 0:00:39.1]}
22... Ng3 {[%clk 0:03:07]} 23. Qe1 {[%clk 0:00:39.3]} 23... Rxf4 {[%clk
0:03:00]} 24. Qxg3 {[%clk 0:00:33.5]} 24... Rxh4 {[%clk 0:02:50.1]} 25. Bxg7
{[%clk 0:00:24.5]} 25... Qxe3+ {[%clk 0:02:49.9]} 26. Rf2 {[%clk 0:00:25.4]}
26... Ng4 {[%clk 0:02:45.8]} 27. Qxh4 {[%clk 0:00:23.2]} 27... Qxf2+ {[%clk
0:02:42.2]} 28. Qxf2 {[%clk 0:00:24]} 28... Nxf2 {[%clk 0:02:44.1]} 29. Kxf2
{[%clk 0:00:18.6]} 29... Kxg7 {[%clk 0:02:46]} 30. a4 {[%clk 0:00:18.3]} 30...
h6 {[%clk 0:02:45.2]} 31. Re1 {[%clk 0:00:18.7]} 31... Rf8 {[%clk 0:02:44]} 32.
Re7+ {[%clk 0:00:19.1]} 32... Rf7 {[%clk 0:02:45.1]} 33. Rxf7+ {[%clk
0:00:20.3]} 33... Kxf7 {[%clk 0:02:46.1]} 34. Kg3 {[%clk 0:00:21.4]} 34... Kf6
{[%clk 0:02:40.7]} 35. Kf4 {[%clk 0:00:21.6]} 35... c5 {[%clk 0:02:37.7]} 36.
dxc6 {[%clk 0:00:20.9]} 36... bxc6 {[%clk 0:02:38.2]} 37. b4 {[%clk 0:00:22.2]}
37... Ke6 {[%clk 0:02:30.8]} 38. a5 {[%clk 0:00:20.7]} 38... bxa5 {[%clk
0:02:28.4]} 39. bxa5 {[%clk 0:00:22.6]} 39... Kd7 {[%clk 0:02:30]} 40. Kxf5
{[%clk 0:00:23.5]} 1-0